fUST/lending_fUST_20250422
["ID","MTS","AMOUNT","RATE_DAILY","PERIOD"]
[358603331,1745302250498,-503.9862238,0.00022465,2]
[358603332,1745302250509,-525.53720885,0.00022465,2]
[358603333,1745302250518,-500.0,0.00022465,2]
[358603334,1745302250528,-486.60195162,0.00022465,2]
[358603335,1745302250537,-500.0,0.00022465,2]
[358603336,1745302250547,-237.214504,0.00022465,7]
[358603337,1745302250556,-500.0,0.00022465,2]
[358603338,1745302250566,-500.0,0.00022465,2]
[358603339,1745302250576,-500.0,0.00022465,2]
[358603340,1745302250585,-500.0,0.00022465,2]
[358603341,1745302250594,-592.74,0.00022465,2]
[358603342,1745302250604,-463.8217499,0.00022465,2]
[358603343,1745302250614,-4474.61,0.00022465,2]
[358603344,1745302250623,-500.0,0.00022465,2]
[358603345,1745302250633,-500.0,0.00022465,2]
[358603346,1745302250643,-8146.71,0.00022465,2]
[358603347,1745302250652,-540.35,0.00022465,2]
[358603348,1745302250662,-576.8598019,0.00022465,2]
[358603349,1745302250672,-500.0,0.00022465,2]
[358603350,1745302250682,-596.64158309,0.00022465,2]
[358603351,1745302250692,-500.0,0.00022465,2]
[358603352,1745302250702,-500.0,0.00022465,2]
[358603353,1745302250711,-500.0,0.00022465,2]
[358603354,1745302250721,-509.53799814,0.00022473,2]
[358603355,1745302250730,-500.0,0.00022473,2]
[358603356,1745302250739,-500.0,0.00022473,2]
[358603357,1745302250749,-171.49124892,0.00022473,2]
[358603358,1745302250758,-500.0,0.00022473,2]
[358603359,1745302250767,-500.0,0.00022473,2]
[358603360,1745302250776,-500.0,0.00022473,2]
[358603361,1745302250786,-500.0,0.00022473,2]
[358603362,1745302250795,-500.0,0.00022473,2]
[358603363,1745302250804,-500.0,0.00022473,2]
[358603364,1745302250813,-500.0,0.00022473,2]
[358603365,1745302250823,-503.71128037,0.00022473,2]
[358603366,1745302250907,-500.0,0.00022473,2]
[358603367,1745302250917,-500.0,0.00022473,2]
[358603368,1745302250927,-500.0,0.00022473,2]
[358603369,1745302250936,-592.05840279,0.00022473,2]
[358603370,1745302250946,-500.0,0.00022473,2]
[358603371,1745302250956,-255.78784769,0.00022473,2]
[358603372,1745302250966,-458.17884943,0.00022473,2]
[358603373,1745302250976,-500.0,0.00022473,2]
[358603374,1745302250985,-502.55080343,0.00022473,2]
[358603375,1745302250994,-500.0,0.00022473,2]
[358603376,1745302251003,-500.0,0.00022473,2]
[358603377,1745302251013,-462.98824588,0.00022473,2]
[358603378,1745302251022,-503.70194652,0.00022473,2]
[358603379,1745302251032,-500.0,0.00022473,2]
[358603380,1745302251041,-500.0,0.00022473,2]
[358603381,1745302251050,-500.0,0.00022473,2]
[358603382,1745302251059,-500.0,0.00022473,2]
[358603383,1745302251069,-500.0,0.00022473,2]
[358603384,1745302251078,-500.0,0.00022473,2]
[358603385,1745302251088,-503.17438149,0.00022473,2]
[358603386,1745302251097,-500.0,0.00022473,2]
[358603387,1745302251107,-500.0,0.00022473,2]
[358603388,1745302251116,-500.0,0.00022473,2]
[358603389,1745302251126,-500.0,0.00022473,2]
[358603390,1745302251136,-500.0,0.00022473,2]
[358603391,1745302251146,-500.0,0.00022473,2]
[358603392,1745302251156,-500.0,0.00022473,2]
[358603393,1745302251166,-300.0,0.00022473,2]
[358603394,1745302251175,-502.76407956,0.00022473,2]
[358603395,1745302251184,-402.43625896,0.00022473,2]
[358603396,1745302251193,-357.9365401,0.000225,2]
[358603397,1745302251204,-3097.07840391,0.000226,2]
[358603398,1745302251214,-500.0,0.00022739,2]
[358603399,1745302251223,-500.0,0.00022739,2]
[358603400,1745302251233,-500.0,0.00022739,2]
[358603401,1745302251242,-500.0,0.00022739,2]
[358603402,1745302251252,-500.0,0.00022739,2]
[358603403,1745302251262,-500.0,0.00022739,2]
[358603404,1745302251271,-500.0,0.00022739,2]
[358603405,1745302251281,-500.0,0.00022739,2]
[358603406,1745302251291,-834.55,0.00022739,2]
[358603407,1745302251302,-500.0,0.00022739,2]
[358603408,1745302251313,-500.0,0.00022739,2]
[358603409,1745302251322,-500.0,0.00022739,2]
[358603410,1745302251332,-500.0,0.00022739,2]
[358603411,1745302251341,-500.0,0.00022739,2]
[358603412,1745302251352,-500.0,0.00022739,2]
[358603413,1745302251361,-500.0,0.00022739,2]
[358603414,1745302251372,-500.0,0.00022739,2]
[358603415,1745302251385,-500.0,0.00022739,2]
[358603416,1745302251394,-500.0,0.00022739,2]
[358603417,1745302251403,-500.0,0.00022739,2]
[358603418,1745302251412,-500.0,0.00022739,2]
[358603419,1745302251422,-500.0,0.00022739,2]
[358603420,1745302251431,-690.1,0.00022739,2]
[358603421,1745302251440,-500.0,0.00022739,2]
[358603422,1745302251450,-500.0,0.00022739,2]
[358603423,1745302251459,-536.10231859,0.00022739,2]
[358603424,1745302251470,-500.0,0.00022739,2]
[358603425,1745302251479,-500.0,0.00022739,2]
[358603426,1745302251489,-500.0,0.00022739,2]
[358603427,1745302251499,-500.0,0.00022739,2]
[358603428,1745302251508,-500.0,0.00022739,2]
[358603429,1745302251518,-500.0,0.00022739,2]
[358603430,1745302251528,-500.0,0.00022739,2]
[358603431,1745302251537,-1122.82,0.00022739,2]
[358603432,1745302251547,-500.0,0.00022739,2]
[358603433,1745302251557,-500.0,0.00022739,2]
[358603434,1745302251566,-500.0,0.00022739,2]
[358603435,1745302251575,-151.0,0.00022739,7]
[358603436,1745302251585,-500.0,0.00022739,2]
[358603437,1745302251595,-500.0,0.00022739,2]
[358603438,1745302251604,-500.0,0.00022739,2]
[358603439,1745302251613,-500.0,0.00022739,2]
[358603440,1745302251623,-500.0,0.00022739,2]
[358603441,1745302251632,-500.0,0.00022739,2]
[358603442,1745302251641,-506.70693926,0.00022739,2]
[358603443,1745302251651,-511.67037687,0.00022739,2]
[358603444,1745302251660,-696.73,0.00022739,2]
[358603445,1745302251670,-500.0,0.00022739,2]
[358603446,1745302251679,-500.0,0.00022739,2]
[358603447,1745302251689,-500.0,0.00022739,2]
[358603448,1745302251698,-151.0,0.00022739,7]
[358603449,1745302251708,-509.98478248,0.00022739,2]
[358603450,1745302251717,-500.0,0.00022739,2]
[358603451,1745302251727,-151.0,0.00022739,7]
[358603452,1745302251736,-500.0,0.00022739,2]
[358603453,1745302251746,-500.0,0.00022739,2]
[358603454,1745302251755,-500.0,0.00022739,2]
[358603455,1745302251765,-634.9,0.00022739,2]
[358603456,1745302251775,-500.0,0.00022739,2]
[358603457,1745302251785,-500.0,0.00022739,2]
[358603458,1745302251795,-694.7,0.00022739,2]
[358603459,1745302251804,-156.894388,0.00022739,7]
[358603460,1745302251814,-500.0,0.00022739,2]
[358603461,1745302251823,-500.0,0.00022739,2]
[358603462,1745302251833,-601.15693754,0.00022739,2]
[358603463,1745302251843,-500.0,0.00022739,2]
[358603464,1745302251854,-506.94084466,0.00022739,2]
[358603465,1745302251863,-500.0,0.00022739,2]
[358603466,1745302251873,-151.0,0.00022739,7]
[358603467,1745302251882,-500.0,0.00022739,2]
[358603468,1745302251892,-500.0,0.00022739,2]
[358603469,1745302251902,-500.0,0.00022739,2]
[358603470,1745302251911,-500.0,0.00022739,2]
[358603471,1745302251921,-500.0,0.00022739,2]
[358603472,1745302251930,-500.0,0.00022739,2]
[358603473,1745302251940,-534.86129718,0.00022739,2]
[358603474,1745302251950,-500.0,0.00022739,2]
[358603475,1745302251959,-500.0,0.00022739,2]
[358603476,1745302251968,-500.0,0.00022739,2]
[358603477,1745302251977,-500.0,0.00022739,2]
[358603478,1745302251987,-500.0,0.00022739,2]
[358603479,1745302251996,-702.82,0.00022739,2]
[358603480,1745302252006,-500.0,0.00022739,2]
[358603481,1745302252016,-1212.69,0.00022739,2]
[358603482,1745302252026,-180.58174657,0.00022739,2]
[358603483,1745302252035,-651.99,0.00022739,2]
[358603484,1745302252045,-606.54,0.00022739,2]
[358603485,1745302252054,-523.5,0.00022739,2]
[358603486,1745302252064,-512.02898218,0.00022739,2]
[358603487,1745302252073,-500.0,0.00022739,2]
[358603488,1745302252083,-727.237391,0.00022739,2]
[358603489,1745302252092,-500.0,0.00022739,2]
[358603490,1745302252102,-500.0,0.00022739,2]
[358603491,1745302252173,-727.237391,0.00022739,2]
[358603492,1745302252183,-500.0,0.00022739,2]
[358603493,1745302252193,-665.25,0.00022739,2]
[358603494,1745302252202,-500.0,0.00022739,2]
[358603495,1745302252212,-500.0,0.00022739,2]
[358603496,1745302252221,-500.0,0.00022739,2]
[358603497,1745302252231,-500.0,0.00022739,2]
[358603498,1745302252240,-500.0,0.00022739,2]
[358603499,1745302252250,-500.0,0.00022739,2]
[358603500,1745302252260,-500.0,0.00022739,2]
[358603501,1745302252269,-691.67,0.00022739,2]
[358603502,1745302252279,-500.0,0.00022739,2]
[358603503,1745302252289,-500.0,0.00022739,2]
[358603504,1745302252298,-500.0,0.00022739,2]
[358603505,1745302252309,-577.95479515,0.00022739,2]
[358603506,1745302252320,-586.56270081,0.00022739,2]
[358603507,1745302252330,-1567.0,0.00022739,2]
[358603508,1745302252340,-500.0,0.00022739,2]
[358603509,1745302252350,-500.0,0.00022739,2]
[358603510,1745302252360,-548.765978,0.00022739,7]
[358603511,1745302252370,-548.765978,0.00022739,7]
[358603512,1745302252380,-500.0,0.00022739,2]
[358603513,1745302252390,-500.0,0.00022739,2]
[358603514,1745302252400,-500.0,0.00022739,2]
[358603515,1745302252410,-500.0,0.00022739,2]
[358603516,1745302252419,-1121.14921,0.00022739,7]
[358603517,1745302252429,-500.0,0.00022739,2]
[358603518,1745302252439,-500.0,0.00022739,2]
[358603519,1745302252449,-1121.14921,0.00022739,7]
[358603520,1745302252458,-151.0,0.00022739,7]
[358603521,1745302252468,-500.0,0.00022739,2]
[358603522,1745302252478,-559.47,0.00022739,2]
[358603523,1745302252488,-500.0,0.00022739,2]
[358603524,1745302252498,-500.0,0.00022739,2]
[358603525,1745302252507,-500.0,0.00022739,2]
[358603526,1745302252517,-500.0,0.00022739,2]
[358603527,1745302252527,-500.0,0.00022739,2]
[358603528,1745302252541,-500.0,0.00022739,2]
[358603529,1745302252550,-500.0,0.00022739,2]
[358603530,1745302252560,-607.94683224,0.00022739,2]
[358603531,1745302252569,-766.42,0.00022739,2]
[358603532,1745302252578,-983.29,0.00022739,2]
[358603533,1745302252588,-500.0,0.00022739,2]
[358603534,1745302252598,-500.0,0.00022739,2]
[358603535,1745302252607,-500.0,0.00022739,2]
[358603536,1745302252617,-500.0,0.00022739,2]
[358603537,1745302252626,-500.0,0.00022739,2]
[358603538,1745302252635,-500.0,0.00022739,2]
[358603539,1745302252644,-500.0,0.00022739,2]
[358603540,1745302252654,-640.87,0.00022739,2]
[358603541,1745302252664,-500.0,0.00022739,2]
[358603542,1745302252673,-500.0,0.00022739,2]
[358603543,1745302252683,-500.0,0.00022739,2]
[358603544,1745302252693,-500.0,0.00022739,2]
[358603545,1745302252703,-500.0,0.00022739,2]
[358603546,1745302252712,-500.0,0.00022739,2]
[358603547,1745302252722,-500.0,0.00022739,2]
[358603548,1745302252731,-500.0,0.00022739,2]
[358603549,1745302252741,-500.0,0.00022739,2]
[358603550,1745302252752,-500.0,0.00022739,2]
[358603551,1745302252762,-500.0,0.00022739,2]
[358603552,1745302252771,-500.0,0.00022739,2]
[358603553,1745302252781,-1560.95,0.00022739,2]
[358603554,1745302252791,-503.77678552,0.00022739,2]
[358603555,1745302252801,-500.0,0.00022739,2]
[358603556,1745302252810,-500.0,0.00022739,2]
[358603557,1745302252820,-500.0,0.00022739,2]
[358603558,1745302252829,-500.0,0.00022739,2]
[358603559,1745302252839,-500.0,0.00022739,2]
[358603560,1745302252848,-881.52,0.00022739,2]
[358603561,1745302252858,-500.0,0.00022739,2]
[358603562,1745302252867,-674.53,0.00022739,2]
[358603563,1745302252878,-500.0,0.00022739,2]
[358603564,1745302252887,-1427.66,0.00022739,2]
[358603565,1745302252898,-500.0,0.00022739,2]
[358603566,1745302252907,-500.0,0.00022739,2]
[358603567,1745302252916,-576.43,0.00022739,2]
[358603568,1745302252926,-524.51963385,0.00022739,2]
[358603569,1745302252935,-500.0,0.00022739,2]
[358603570,1745302252945,-500.0,0.00022739,2]
[358603571,1745302252954,-508.5655277,0.00022739,2]
[358603572,1745302252963,-510.87703201,0.00022739,2]
[358603573,1745302252973,-500.0,0.00022739,2]
[358603574,1745302252982,-542.13,0.00022739,2]
[358603575,1745302252992,-500.0,0.00022739,2]
[358603576,1745302253002,-500.0,0.00022739,2]
[358603577,1745302253011,-500.0,0.00022739,2]
[358603578,1745302253020,-1172.17,0.00022739,2]
[358603579,1745302253030,-500.0,0.00022739,2]
[358603580,1745302253039,-500.0,0.00022739,2]
[358603581,1745302253048,-500.0,0.00022739,2]
[358603582,1745302253057,-500.0,0.00022739,2]
[358603583,1745302253067,-500.0,0.00022739,2]
[358603584,1745302253076,-500.0,0.00022739,2]
[358603585,1745302253086,-500.0,0.00022739,2]
[358603586,1745302253095,-500.0,0.00022739,2]
[358603587,1745302253104,-503.05163335,0.00022739,2]
[358603588,1745302253114,-510.25508165,0.00022739,2]
[358603589,1745302253123,-500.0,0.00022739,2]
[358603590,1745302253132,-500.0,0.00022739,2]
[358603591,1745302253142,-506.86194373,0.00022739,2]
[358603592,1745302253151,-500.0,0.00022739,2]
[358603593,1745302253161,-500.0,0.00022739,2]
[358603594,1745302253170,-500.0,0.00022739,2]
[358603595,1745302253180,-500.0,0.00022739,2]
[358603596,1745302253190,-500.0,0.00022739,2]
[358603597,1745302253200,-308.5373853,0.00022739,2]
[358603598,1745302253209,-503.08872283,0.00022739,2]
[358603599,1745302253219,-506.22343277,0.00022739,2]
[358603600,1745302253229,-1900.36,0.00022739,2]
[358603601,1745302253238,-500.0,0.00022739,2]
[358603602,1745302253248,-500.0,0.00022739,2]
[358603603,1745302253258,-500.0,0.00022739,2]
[358603604,1745302253267,-500.0,0.00022739,2]
[358603605,1745302253277,-500.0,0.00022739,2]
[358603606,1745302253348,-1232.27,0.00022739,2]
[358603607,1745302253358,-505.84572035,0.00022739,2]
[358603608,1745302253368,-500.0,0.00022739,2]
[358603609,1745302253377,-500.0,0.00022739,2]
[358603610,1745302253388,-500.0,0.00022739,2]
[358603611,1745302253398,-500.0,0.00022739,2]
[358603612,1745302253408,-543.06,0.00022739,2]
[358603613,1745302253417,-500.0,0.00022739,2]
[358603614,1745302253427,-500.0,0.00022739,2]
[358603615,1745302253436,-504.94271526,0.00022739,2]
[358603616,1745302253446,-701.28,0.00022739,2]
[358603617,1745302253455,-4982.44,0.00022739,2]
[358603618,1745302253465,-500.0,0.00022739,2]
[358603619,1745302253475,-5700.09,0.00022739,2]
[358603620,1745302253485,-806.06,0.00022739,2]
[358603621,1745302253494,-500.0,0.00022739,2]
[358603622,1745302253504,-500.0,0.00022739,2]
[358603623,1745302253514,-500.0,0.00022739,2]
[358603624,1745302253523,-500.0,0.00022739,2]
[358603625,1745302253533,-500.0,0.00022739,2]
[358603626,1745302253543,-592.74,0.00022739,2]
[358603627,1745302253553,-4474.61,0.00022739,2]
[358603628,1745302253563,-500.0,0.00022739,2]
[358603629,1745302253572,-500.0,0.00022739,2]
[358603630,1745302253582,-8146.71,0.00022739,2]
[358603631,1745302253591,-540.35,0.00022739,2]
[358603632,1745302253601,-500.0,0.00022739,2]
[358603633,1745302253611,-500.0,0.00022739,2]
[358603634,1745302253620,-500.0,0.00022739,2]
[358603635,1745302253630,-500.0,0.00022739,2]
[358603636,1745302253639,-500.0,0.00022848,2]
[358603637,1745302253649,-507.4862499,0.00022848,2]
[358603638,1745302253659,-500.0,0.00022853,2]
[358603639,1745302253668,-500.0,0.00022973,2]
[358603640,1745302253677,-727.237391,0.00022973,2]
[358603641,1745302253687,-727.237391,0.00022973,2]
[358603642,1745302253696,-548.765978,0.00022973,7]
[358603643,1745302253706,-548.765978,0.00022973,7]
[358603644,1745302253716,-1121.14921,0.00022973,7]
[358603645,1745302253725,-1121.14921,0.00022973,7]
[358603646,1745302253735,-151.0,0.00022973,7]
[358603647,1745302253744,-205.36802087,0.00022991,4]
[358603648,1745302253754,-33960.72243133,0.00023,3]
[358603649,1745302253810,-500.0,0.00021917,2]
[358603650,1745302253819,-11187.27924249,0.00023,3]
[358603651,1745302253889,-504.13543594,0.00021917,2]
[358603652,1745302253900,-500.0,0.00021917,2]
[358603653,1745302253910,-504.3599108,0.00021917,2]
[358603654,1745302253921,-151.0,0.00022191,7]
[358603655,1745302253931,-167.471844,0.00022465,7]
[358603656,1745302253941,-1310.95487122,0.00023,3]
[358603657,1745302254037,-19124.15661911,0.00023,3]
[358603658,1745302254050,-3558.66640377,0.00023,3]
[358603663,1745302474587,4756.02766344,0.0003,30]
[358603665,1745302667486,618.04,0.0003,30]
[358603670,1745303344487,98784.52384,0.0003,30]
[358603671,1745303352872,192.0,0.0003,30]
[358603672,1745303368671,192.0,0.0003,31]
[358603673,1745303371105,300.0,0.0003,120]
[358603677,1745303394977,192.0,0.0003,35]
[358603695,1745303432267,-160.0,0.00020664,2]
[358603697,1745303432277,-1200.0,0.00020682,2]
[358603699,1745303432286,-67.12885277,0.00020683,2]
[358603719,1745303438537,-4007.13311733,0.00020683,2]
[358603720,1745303438549,-3158.1581327,0.00020814,2]
[358603721,1745303438559,-172.7651333,0.00021029,2]
[358603722,1745303438569,-2315.27224075,0.000218,2]
[358603723,1745303438579,-151.49184115,0.00021804,2]
[358603724,1745303438589,-152.62253084,0.00021804,2]
[358603725,1745303438599,-207.4,0.00021804,2]
[358603726,1745303438609,-300.0,0.00021815,2]
[358603727,1745303438619,-327.3705273,0.00021816,2]
[358603728,1745303438628,-500.0,0.00021816,2]
[358603729,1745303438638,-565.80684279,0.00021816,2]
[358603730,1745303438648,-578.70370118,0.00021816,2]
[358603731,1745303438658,-500.0,0.00021816,2]
[358603732,1745303438668,-500.0,0.00021816,2]
[358603733,1745303438679,-500.0,0.00021816,2]
[358603734,1745303438688,-502.15931949,0.00021816,2]
[358603735,1745303438697,-500.0,0.00021816,2]
[358603736,1745303438709,-500.0,0.00021816,2]
[358603737,1745303438719,-500.0,0.00021816,2]
[358603738,1745303438728,-350.95174927,0.00021816,2]
[358603739,1745303438738,-500.0,0.00021816,2]
[358603740,1745303438747,-500.0,0.00021816,2]
[358603741,1745303438756,-284.11401661,0.00021816,2]
[358603742,1745303438766,-500.0,0.00021816,2]
[358603743,1745303438775,-500.0,0.00021816,2]
[358603744,1745303438785,-271.96792306,0.00021816,2]
[358603745,1745303438807,-500.0,0.00021816,2]
[358603746,1745303438817,-500.0,0.00021816,2]
[358603747,1745303438828,-500.0,0.00021816,2]
[358603748,1745303438838,-500.0,0.00021816,2]
[358603749,1745303438847,-500.0,0.00021816,2]
[358603750,1745303438857,-500.0,0.00021816,2]
[358603751,1745303438869,-500.0,0.00021816,2]
[358603752,1745303438879,-500.0,0.00021816,2]
[358603753,1745303438889,-500.0,0.00021816,2]
[358603754,1745303438899,-500.0,0.00021816,2]
[358603755,1745303438909,-500.0,0.00021816,2]
[358603756,1745303438918,-500.0,0.00021816,2]
[358603757,1745303438928,-500.0,0.00021816,2]
[358603758,1745303438938,-500.0,0.00021816,2]
[358603759,1745303438948,-500.0,0.00021816,2]
[358603760,1745303438958,-500.0,0.00021816,2]
[358603761,1745303438967,-500.0,0.00021816,2]
[358603762,1745303438977,-500.0,0.00021816,2]
[358603763,1745303438987,-500.0,0.00021816,2]
[358603764,1745303438997,-500.0,0.00021816,2]
[358603765,1745303439007,-500.0,0.00021816,2]
[358603766,1745303439017,-500.0,0.00021816,2]
[358603767,1745303439026,-500.0,0.00021816,2]
[358603768,1745303439041,-600.0,0.00021816,2]
[358603769,1745303439051,-91832.07231773,0.00021817,2]
[358603770,1745303439102,-4250.2505069,0.00021817,2]
[358603779,1745303440721,-19526.4526952,0.00021817,2]
[358603780,1745303442642,192.0,0.0003,32]
[358603796,1745303444463,-387.67466367,0.00021817,2]
[358603797,1745303444475,-89880.54796546,0.00021817,2]
[358603829,1745303446333,-208.76587547,0.000218,2]
[358603830,1745303446344,-1036.23412453,0.00021817,2]
[358603831,1745303446356,-1660.17900002,0.00021817,2]
[358603832,1745303446367,-3386.36,0.00021817,2]
[358603836,1745303448747,192.0,0.0003,33]
[358603838,1745303461567,194.70201975,0.0003,36]
[358603840,1745303569978,383.30348559,0.0003,120]
[358603841,1745303703698,2500.0002142,0.0003,90]
[358603842,1745303742603,2500.0,0.0003,30]
[358603859,1745303950897,1625.64712654,0.0003,120]
[358603930,1745304632475,-316.36818153,0.00021164,2]
[358603932,1745304632486,-316.36818153,0.00021373,2]
[358603934,1745304632496,-2025.86321063,0.00021616,2]
[358603935,1745304632508,-264.86318329,0.00021617,2]
[358603937,1745304632518,-160.0,0.00021664,2]
[358603939,1745304632528,-264.86318329,0.00021667,2]
[358603941,1745304632538,-1000.0,0.000217,2]
[358603942,1745304632548,-1200.0,0.00021714,2]
[358603943,1745304632558,-148831.40353922,0.00021717,2]
[358603944,1745304632570,-780.76269514,0.00021717,2]
[358603945,1745304632582,-28505.55007858,0.00021717,2]
[358603960,1745304638894,-24077.06549938,0.00021716,3]
[358603961,1745304638906,-50105.86422212,0.00021717,2]
[358603962,1745304638916,-17922.47071506,0.00021717,2]
[358603963,1745304638929,-12570.97479393,0.00021717,3]
[358603964,1745304638941,-370000.0,0.00021717,2]
[358603965,1745304638951,-264.86318329,0.00021717,2]
[358603966,1745304638961,-264.86318329,0.00021767,2]
[358603967,1745304638970,-207.4,0.00021773,2]
[358603968,1745304638980,-264.86318329,0.00021817,2]
[358603969,1745304638992,-300.0,0.00021863,2]
[358603970,1745304639001,-174.7434727,0.000219,2]
[358603971,1745304639011,-174.7434727,0.000219,2]
[358603972,1745304639020,-174.7434727,0.000219,2]
[358603973,1745304639030,-174.7434727,0.000219,2]
[358603974,1745304639039,-174.7434727,0.000219,2]
[358603975,1745304639049,-361.1558387,0.000219,2]
[358603976,1745304639060,-174.7434727,0.000219,2]
[358603977,1745304639070,-174.7434727,0.000219,2]
[358603978,1745304639080,-174.7434727,0.000219,2]
[358603979,1745304639089,-174.7434727,0.000219,2]
[358603980,1745304639102,-166.1871699,0.000219,2]
[358603981,1745304639112,-500.0,0.00021917,2]
[358603982,1745304639122,-500.0,0.00021917,2]
[358603983,1745304639132,-500.0,0.00021917,2]
[358603984,1745304639142,-504.70852803,0.00021917,2]
[358603985,1745304639151,-500.0,0.00021917,2]
[358603986,1745304639161,-500.0,0.00021917,2]
[358603987,1745304639171,-628.46444244,0.00021917,2]
[358603988,1745304639182,-212.65639608,0.00021917,2]
[358603989,1745304639192,-500.0,0.00021917,2]
[358603990,1745304639202,-500.0,0.00021917,2]
[358603991,1745304639212,-502.68867353,0.00021917,2]
[358603992,1745304639222,-500.82544185,0.00021917,2]
[358603993,1745304639232,-500.96735198,0.00021917,2]
[358603994,1745304639242,-500.0,0.00021917,2]
[358603995,1745304639251,-500.0,0.00021917,2]
[358603996,1745304639261,-500.0,0.00021917,2]
[358603997,1745304639271,-500.0,0.00021917,2]
[358603998,1745304639280,-500.54663892,0.00021917,2]
[358603999,1745304639290,-500.0,0.00021917,2]
[358604000,1745304639300,-574.25390053,0.00021917,2]
[358604001,1745304639309,-152.743483,0.00021917,2]
[358604002,1745304639320,-151.0,0.00021917,2]
[358604003,1745304639330,-151.0,0.00021917,2]
[358604004,1745304639340,-500.0,0.00021917,2]
[358604005,1745304639350,-504.75229508,0.00021917,2]
[358604006,1745304639360,-301.91134715,0.00021917,2]
[358604007,1745304639370,-301.275818,0.00021917,2]
[358604008,1745304639380,-506.51546758,0.00021917,2]
[358604009,1745304639390,-501.77784407,0.00021917,2]
[358604010,1745304639401,-500.0,0.00021917,2]
[358604011,1745304639411,-500.0,0.00021917,2]
[358604012,1745304639420,-507.10692706,0.00021917,2]
[358604013,1745304639430,-645.33139018,0.00021917,2]
[358604014,1745304639440,-500.0,0.00021917,2]
[358604015,1745304639449,-500.0,0.00021917,2]
[358604016,1745304639459,-262.484311,0.00021917,2]
[358604017,1745304639469,-500.0,0.00021917,2]
[358604018,1745304639479,-151.0,0.00021917,2]
[358604019,1745304639489,-151.0,0.00021917,2]
[358604020,1745304639501,-500.0,0.00021917,2]
[358604021,1745304639511,-500.0,0.00021917,2]
[358604022,1745304639520,-151.0,0.00021917,2]
[358604023,1745304639531,-501.13848683,0.00021917,2]
[358604024,1745304639540,-500.0,0.00021917,2]
[358604025,1745304639550,-500.0,0.00021917,2]
[358604026,1745304639560,-500.0,0.00021917,2]
[358604027,1745304639569,-500.0,0.00021917,2]
[358604028,1745304639580,-500.0,0.00021917,2]
[358604029,1745304639589,-500.0,0.00021917,2]
[358604030,1745304639599,-500.0,0.00021917,2]
[358604031,1745304639609,-500.0,0.00021917,2]
[358604032,1745304639618,-500.0,0.00021917,2]
[358604033,1745304639628,-536.28286628,0.00021917,2]
[358604034,1745304639638,-500.0,0.00021917,2]
[358604035,1745304639647,-501.06957214,0.00021917,2]
[358604036,1745304639657,-500.0,0.00021917,2]
[358604037,1745304639666,-500.0,0.00021917,2]
[358604038,1745304639676,-500.0,0.00021917,2]
[358604039,1745304639686,-500.0,0.00021917,2]
[358604040,1745304639695,-500.0,0.00021917,2]
[358604041,1745304639705,-500.0,0.00021917,2]
[358604042,1745304639714,-500.0,0.00021917,2]
[358604043,1745304639724,-500.0,0.00021917,2]
[358604044,1745304639733,-500.0,0.00021917,2]